Cogmind - Beta 10.2 @@@ ROGUE MODE // 2021.12.07 @ 22:26:53 Player: sentrybuster Result: Self-destructed Performance ------------- Evolutions (9) 4500 Regions Visited (18) 3600 Robots Destroyed (196) 980 Value Destroyed (7394) 7394 Prototype IDs (33) 660 Alien Tech Used (2) 400 Bonus (1019) 1019 TOTAL SCORE: 18553 Bonus ------- High Alert Combat Kills 40 Follower Combat Kills 1377 Network Hubs Disabled 200 Friendly Fire -598 Cogmind --------- Core Integrity 1600/1600 Matter 191/300 Energy 250/250 System Corruption 0% Temperature Cool (0) Movement Treading (160) Location -1/Access Parts ------- > --- POWER (2) -------- Light Antimatter Reactor Light Particle Reactor > --- PROPULSION (6) --- Centrium Heavy Treads Centrium Heavy Treads Centrium Heavy Treads > --- UTILITY (12) ----- Advanced Heat Sink High-capacity Storage Unit Enhanced Optical Array Experimental Signal Interpreter Improved Weapon Cycler Experimental Actuator Array Phase Armor Experimental Thermal Shield System Guard Long-range Tractor Beam > --- WEAPON (5) ------- Heavy Tesla Rifle Long-range Proton Cannon Enhanced Gauss Cannon Linear Accelerator Experimental Stasis Projector > --- INVENTORY (12) --- Quantum Reactor Medium Treads Centrium Heavy Treads Advanced Sensor Array Experimental Thermal Defense Suite Transdimensional Reconstructor Improved Matter Neutralizer Improved KE Penetrator Linear Accelerator Sigix Terminator Peak State ------------ > --- POWER ------------ Light Antimatter Reactor Light Particle Reactor > --- PROPULSION ------- Centrium Heavy Treads Centrium Heavy Treads Centrium Heavy Treads > --- UTILITY ---------- Advanced Heat Sink High-capacity Storage Unit Enhanced Optical Array Experimental Signal Interpreter Improved Weapon Cycler Experimental Actuator Array Phase Armor Experimental Thermal Shield System Guard Long-range Tractor Beam > --- WEAPON ----------- Heavy Tesla Rifle Long-range Proton Cannon Enhanced Gauss Cannon Linear Accelerator Experimental Stasis Projector > --- INVENTORY -------- Quantum Reactor Medium Treads Centrium Heavy Treads Advanced Sensor Array Experimental Thermal Defense Suite Transdimensional Reconstructor Improved Matter Neutralizer Improved KE Penetrator Linear Accelerator Sigix Terminator [Rating: 195] Favorites ----------- Power Enhanced Nuclear Core Engine Heavy Ion Engine Power Core Enhanced Nuclear Core Reactor Light Antimatter Reactor Propulsion Centrium Heavy Treads Treads Centrium Heavy Treads Leg Armored Leg Wheel Wheel Utility High-capacity Storage Unit Device Improved Terrain Scanner Storage High-capacity Storage Unit Processor Improved Signal Interpreter Protection Improved Medium Armor Plating Artifact Phase Armor Weapon Powered Hammer Energy Gun Wave Gun Energy Cannon Improved Matter Neutralizer Ballistic Gun Enhanced Autogun Ballistic Cannon Enhanced Gauss Cannon Launcher Heavy Rocket Launcher Special Weapon Experimental Stasis Projector Impact Weapon Powered Hammer Build | -11 -10 -9 -9 -8 -7 -6 -6 -6 -6 -6 -5 -5 -5 -4 -3 -3 -2 -1 ------- Run | Scr Mat Mat Min Mat Fac Fac Ext Cet Arc Hub Fac Upp Upp Fac Res Qua Res Acc Slots Evolved 18 | . . 2 . 2 2 2 . . . . 2 . . 2 2 . 2 2 Power 1 | . . . . . . . . . . . . . . . . . . 1 Propulsion 4 | . . . . . 1 1 . . . . . . . 1 1 . . . Utility 10 | . . 2 . 1 1 1 . . . . 1 . . 1 . . 2 1 Weapon 3 | . . . . 1 . . . . . . 1 . . . 1 . . . Parts Attached 208 | 8 . 18 1 28 22 30 20 7 . 16 17 3 . 5 12 5 10 6 Power 11 | 1 . 2 . 1 1 2 . . . 1 . . . 1 . . 1 1 Engine 4 | 1 . 2 . 1 . . . . . . . . . . . . . . Core 4 | . . . . . 1 2 . . . 1 . . . . . . . . Reactor 3 | . . . . . . . . . . . . . . 1 . . 1 1 Propulsion 34 | 2 . 4 . 6 5 4 7 1 . 3 . . . 1 1 . . . Treads 26 | 2 . 4 . 6 3 1 4 1 . 3 . . . 1 1 . . . Leg 2 | . . . . . . 1 1 . . . . . . . . . . . Wheel 6 | . . . . . 2 2 2 . . . . . . . . . . . Hover . | . . . . . . . . . . . . . . . . . . . Flight . | . . . . . . . . . . . . . . . . . . . Utility 85 | 3 . 4 . 7 12 16 8 1 . 6 9 2 . 1 7 2 6 1 Device 51 | 1 . 1 . 1 8 11 4 . . 5 7 1 . 1 5 1 4 1 Storage 4 | 1 . . . 1 . . . . . . . . . . . . 2 . Processor 9 | 1 . 1 . 2 3 . 1 . . . . . . . 1 . . . Hackware . | . . . . . . . . . . . . . . . . . . . Protection 20 | . . 2 . 3 1 5 3 1 . 1 2 1 . . 1 . . . Artifact 1 | . . . . . . . . . . . . . . . . 1 . . Weapon 78 | 2 . 8 1 14 4 8 5 5 . 6 8 1 . 2 4 3 3 4 Energy Gun 23 | 1 . 2 1 8 1 . . 1 . 1 2 . . 2 2 . . 2 Energy Cannon 9 | . . . . . . 1 1 . . 2 . . . . 1 2 2 . Ballistic Gun 24 | 1 . 3 . 3 2 4 3 2 . 2 4 . . . . . . . Ballistic Cannon 6 | . . . . 1 1 . . . . . 1 . . . . 1 1 1 Launcher 10 | . . 1 . 2 . 1 1 1 . 1 1 1 . . 1 . . . Special Weapon 1 | . . . . . . . . . . . . . . . . . . 1 Impact Weapon 5 | . . 2 . . . 2 . 1 . . . . . . . . . . Slashing Weapon . | . . . . . . . . . . . . . . . . . . . Piercing Weapon . | . . . . . . . . . . . . . . . . . . . Special Melee Weapon . | . . . . . . . . . . . . . . . . . . . Unidentified Prototypes 23 | . . 1 . 1 2 2 . 4 . 2 . . . . 4 2 2 3 Parts Lost 38 | . . 1 . 4 . 5 9 3 . 3 6 . . . 7 . . . Power 2 | . . . . . . 2 . . . . . . . . . . . . Propulsion 7 | . . . . . . 1 3 1 . 2 . . . . . . . . Utility 14 | . . . . 1 . 1 3 . . . 4 . . . 5 . . . Weapon 15 | . . 1 . 3 . 1 3 2 . 1 2 . . . 2 . . . Highest Loss Streak 8 | . . 1 . 2 . 2 8 3 . 2 5 . . . 4 . . . Average Slot Usage (%) 91 | . 100 94 100 97 98 97 93 91 93 90 91 94 94 86 73 79 71 79 Engine 2 | . 14 11 11 8 1 . . . . . . . . . . . . . Core 3 | . . . . . 5 5 6 6 6 6 5 5 5 . . . . . Treads 15 | . 28 21 22 18 15 12 12 6 6 11 17 17 17 15 14 14 13 12 Leg 1 | . . . . . . 4 . 6 6 2 . . . . . . . . Wheel 2 | . . . . . 5 5 8 6 6 2 . . . . . . . . Device 10 | . 14 10 11 9 5 12 9 6 6 6 9 11 11 12 9 18 15 23 Storage 4 | . . . . 6 7 6 6 6 6 6 5 5 5 5 4 4 4 4 Processor 16 | . 14 21 22 19 23 20 20 20 20 20 16 11 11 10 9 9 8 8 Protection 8 | . . 7 11 9 8 6 8 12 13 13 11 17 17 15 12 1 . . Energy Gun 3 | . 14 7 10 8 4 . . . . . . 5 5 5 4 4 . 3 Energy Cannon 1 | . . . . . . 2 4 . . 2 . . . . . 5 5 4 Ballistic Gun 9 | . 14 13 11 14 9 13 12 10 13 9 14 1 . . . . . . Ballistic Cannon 3 | . . . . 2 7 1 . . . . . 5 5 5 4 7 11 8 Impact Weapon 2 | . . . . . . 1 . 1 6 6 5 5 5 5 4 4 4 3 Naked Turns . | . . . . . . . . . . . . . . . . . . . Heaviest Build 151 | 14 10 19 19 57 68 75 67 75 72 74 87 88 87 92 99 128 140 151 Greatest Support 240 | 40 40 40 40 40 48 48 60 80 80 140 140 140 140 190 240 240 240 240 Greatest Overweight (x) 6 | . . . . 1 6 6 4 4 . . . . . . . . . . Average Overweight (x) 1 | . . . . . 4 4 1 . . . . . . . . . . . Largest Inventory Capacity 16 | 6 4 4 4 12 12 12 12 12 12 12 12 12 12 12 12 12 16 12 Average Capacity 10 | 5 4 4 4 9 12 12 12 12 12 12 12 12 12 12 12 12 12 12 Most Carried 12 | 6 4 4 4 12 12 12 12 12 12 12 12 12 12 12 12 12 12 12 Average Carried 10 | 3 4 3 4 8 11 11 11 11 12 11 11 11 12 11 11 11 11 11 Final Capacity 12 | 4 4 4 4 12 12 12 12 12 12 12 12 12 12 12 12 12 12 12 Final Carried 12 | 4 4 4 4 12 12 12 12 12 12 12 11 12 12 12 12 12 12 12 Class Distribution -------------------- 31% | Scavenger-Assassin 17% | Scavenger-Mutant 15% | Mutant 11% | Skirmisher 7% | Scavenger-Skirmisher 5% | Assassin Dominant Class ---------------- Mutant | -10/Materials Scavenger-Mutant | -9/Materials Scavenger-Mutant | -9/Mines Scavenger-Skirmisher | -8/Materials Skirmisher | -7/Factory Mutant | -6/Factory Commander-Skirmisher | -6/Extension Scavenger-Tank | -6/Cetus Scavenger-Mutant | -6/Archives Scavenger-Assassin | -6/Hub_04(d) Scavenger-Assassin | -5/Factory Scavenger-Assassin | -5/Upper Caves Scavenger-Assassin | -5/Upper Caves Scavenger-Assassin | -4/Factory Scavenger-Assassin | -3/Research Scavenger-Assassin | -3/Quarantine Scavenger-Assassin | -2/Research Scavenger-Mutant | -1/Access Resources | -11 -10 -9 -9 -8 -7 -6 -6 -6 -6 -6 -5 -5 -5 -4 -3 -3 -2 -1 ----------- Run | Scr Mat Mat Min Mat Fac Fac Ext Cet Arc Hub Fac Upp Upp Fac Res Qua Res Acc Matter Collected 5848 | 292 24 342 36 479 321 1039 563 106 58 343 605 207 10 36 593 148 512 134 Remotely . | . . . . . . . . . . . . . . . . . . . Salvage Created 8507 | 107 141 831 73 1049 470 1298 715 86 . 758 1322 87 . 36 642 191 567 134 Parts 421 | 7 7 50 10 70 28 50 37 3 . 35 66 10 . 4 25 6 12 1 Haulers Intercepted 8 | . . 2 . 1 2 1 . . . 1 . . . . 1 . . . Recyclers Shooed 11 | . . 2 . 1 1 2 . . . 1 3 . . . . . . 1 Parts Field Recycled . | . . . . . . . . . . . . . . . . . . . Retrieved Matter . | . . . . . . . . . . . . . . . . . . . Parts Self-Destructed 4 | . . . . . . . . . . . . 4 . . . . . . Prevented . | . . . . . . . . . . . . . . . . . . . Kills | -11 -10 -9 -9 -8 -7 -6 -6 -6 -6 -6 -5 -5 -5 -4 -3 -3 -2 -1 ------- Run | Scr Mat Mat Min Mat Fac Fac Ext Cet Arc Hub Fac Upp Upp Fac Res Qua Res Acc Combat Hostiles Destroyed 137 | . 2 16 6 21 6 16 11 3 . 6 14 7 . . 12 5 12 . Melee 2 | . . 2 . . . . . . . . . . . . . . . . Guns 66 | . 2 14 3 12 3 9 4 . . 4 11 . . . 2 2 . . Cannons 42 | . . . . 3 3 5 5 . . 2 2 1 . . 7 3 11 . AOE 25 | . . . 3 6 . 1 2 3 . . 1 6 . . 3 . . . Classes Destroyed 15 | 2 2 3 . 2 2 . 2 . . 1 . . . 1 . . . . Worker 13 | . . . . . 1 3 . . . 3 5 . . . 1 . . . Builder 12 | . . . . 2 . 3 . . . 2 4 . . . 1 . . . Tunneler 1 | 1 . . . . . . . . . . . . . . . . . . Hauler 8 | . . 2 . 1 2 1 . . . 1 . . . . 1 . . . Recycler 13 | 1 . . . . 2 3 . . . 1 3 . . . 1 . 1 1 Mechanic 1 | . . . . . . . . . . . . . . 1 . . . . Operator 1 | . . . . . . . . . . 1 . . . . . . . . Watcher 8 | . 2 2 . 1 . . . . . 2 1 . . . . . . . Swarmer 36 | . . 3 6 7 . 4 3 3 . . . 3 . . 3 . 4 . Grunt 32 | . 2 8 . 5 2 2 1 . . 1 2 . . . 4 3 2 . Brawler 1 | . . . . . . . . . . . 1 . . . . . . . Sentry 31 | . . 5 . 7 2 3 6 . . 2 4 . . . 1 . 1 . Hunter 10 | . . . . 2 1 4 . . . 1 2 . . . . . . . Programmer 22 | . . . . . 1 3 . . . 2 5 . . . 4 2 5 . Behemoth 1 | . . . . . . . 1 . . . . . . . . . . . Wasp 3 | . . . . . . . . . . . . 3 . . . . . . Thug 2 | . . . . . . . 1 . . . . 1 . . . . . . Savage 1 | . . . . . . . 1 . . . . . . . . . . . Best Kill Streak 14 | 2 2 5 4 6 2 5 5 3 . 5 14 4 . 1 6 5 4 1 Combat Bots Only 8 | . 2 5 4 5 1 4 5 3 . 3 8 4 . . 4 5 4 . Max Kills in Single Turn 3 | 1 1 2 3 3 1 2 2 2 . 2 3 3 . 1 3 1 2 1 Gunslinging 1 | . . 1 . . . . . . . . . . . . . . . . Exploded 3 | . . . 3 3 . 1 2 2 . . 1 3 . . 2 . . . Melee 1 | . . 1 . . . . . . . . . . . . . . . . Uniques/NPCs Destroyed . | . . . . . . . . . . . . . . . . . . . Combat | -11 -10 -9 -9 -8 -7 -6 -6 -6 -6 -6 -5 -5 -5 -4 -3 -3 -2 -1 -------- Run | Scr Mat Mat Min Mat Fac Fac Ext Cet Arc Hub Fac Upp Upp Fac Res Qua Res Acc Damage Taken 11987 | . 88 496 83 678 488 1575 1806 411 114 941 1487 125 . . 1920 288 1487 . Core 1169 | . 11 71 14 74 60 188 196 15 . 23 190 . . . 131 29 167 . Absorbed by Shields 411 | . . . . . . . . . . . 411 . . . . . . . Reduced by Siege Mode 121 | . . . . . . . . . . 7 . . . . 114 . . . Redirected to Core 23 | . . . . . . . . . . . . . . . . . 23 . Core Remaining (%) 84 | 100 95 . 78 86 91 . . . . 50 . . 81 100 . 87 80 . Volleys Fired 523 | 4 8 48 6 51 28 105 39 5 5 39 45 7 . 8 58 25 34 8 Largest 4 | 2 2 2 2 3 3 3 3 2 2 2 3 2 . 2 3 3 4 3 Hottest 301 | 70 70 73 68 123 151 140 145 72 70 125 173 138 . 138 251 301 261 193 Shots Fired 1068 | 8 16 82 10 126 70 213 94 6 10 75 104 11 . 11 99 54 69 10 Gun 680 | 8 16 82 9 108 45 141 60 . 10 51 87 4 . 8 28 17 . 6 Cannon 353 | . . . . 13 25 65 28 . . 23 17 3 . 3 68 37 69 2 Launcher 33 | . . . 1 5 . 7 6 6 . 1 . 4 . . 3 . . . Special 2 | . . . . . . . . . . . . . . . . . . 2 Kinetic 727 | 4 8 59 5 66 47 168 60 . 10 51 103 3 . 3 58 30 50 2 Thermal 232 | 4 8 5 . 20 23 38 28 . . 23 1 4 . 8 34 23 13 . Explosive 10 | . . . 1 2 . . . . . . . 4 . . 3 . . . Electromagnetic 97 | . . 18 4 38 . 7 6 6 . 1 . . . . 4 1 6 6 Robot Hit Streak 30 | 5 16 11 5 13 17 16 14 . 13 30 15 8 . 9 18 15 20 23 Robot Miss Streak 6 | 1 1 3 2 3 2 6 2 . . 2 2 . . 2 1 1 4 2 Penetration Max 1 | . . . . . . . 1 . . 1 1 . . . 1 1 1 . Secondary Targets 8 | . . 3 1 1 . 2 . . . . 1 . . . . . . . Max Gunslinging Chain 1 | . . 1 1 1 . 1 . . . . 1 . . . . . . . Shots Hit Robots 738 | 5 13 68 7 84 50 104 66 . 10 59 76 6 . 8 75 39 63 5 Core Hits 343 | 3 7 31 6 47 24 46 36 10 4 19 37 10 . 2 29 10 20 2 Critical Hits 53 | . . . . 1 1 4 1 . 1 6 17 1 . 1 11 4 5 . Critical Kills 19 | . . . . 1 1 3 1 . . 3 7 1 . . . 1 1 . Critical Parts Destroyed 29 | . . . . . . 1 . . 1 3 7 . . 1 9 3 4 . Melee Attacks 115 | . . 7 . . . 16 . 7 . 11 18 . . 1 18 6 31 . Impact 115 | . . 7 . . . 16 . 7 . 11 18 . . 1 18 6 31 . Slashing . | . . . . . . . . . . . . . . . . . . . Piercing . | . . . . . . . . . . . . . . . . . . . Sneak Attacks 15 | . . . . . . 7 . . . 1 4 . . 1 1 . 1 . Combat Hostiles . | . . . . . . . . . . . . . . . . . . . Follow-up Attacks . | . . . . . . . . . . . . . . . . . . . Damage Inflicted 22713 | 53 162 992 259 1601 1020 2671 2274 353 262 1852 2943 742 . 306 3042 1404 2614 163 Guns 8900 | 53 162 859 58 1047 565 1007 764 . 262 1094 1839 46 . 120 504 419 . 101 Cannons 8510 | . . . . 235 455 600 828 . . 520 533 119 . 90 1986 985 2097 62 Explosions 3422 | . . . 201 319 . 463 682 353 . 111 188 577 . . 406 . 122 . Melee 1862 | . . 130 . . . 601 . . . 127 367 . . 96 146 . 395 . Ramming 19 | . . 3 . . . . . . . . 16 . . . . . . . Kinetic 12364 | 41 87 583 31 714 659 1444 764 . 262 1094 2372 119 . 90 1714 870 1458 62 Thermal 4912 | 12 75 62 . 354 361 163 1169 . . 520 188 46 . 120 714 534 594 . Explosive 1184 | . . . 201 . . . . . . . . 577 . . 406 . . . Electromagnetic 2372 | . . 214 27 533 . 463 341 353 . 111 . . . . 62 . 167 101 Impact 1862 | . . 130 . . . 601 . . . 127 367 . . 96 146 . 395 . Slashing . | . . . . . . . . . . . . . . . . . . . Piercing . | . . . . . . . . . . . . . . . . . . . Highest Corruption 14 | . 1 . . . 1 6 6 6 6 11 14 14 14 . 6 9 7 . Average Corruption 5 | . 1 . . . 1 4 6 6 6 6 7 14 14 . 5 6 4 . Corruption Purged . | . . . . . . . . . . . . . . . . . . . Effects 234 | . . . . . 1 51 37 10 3 21 13 29 8 . 15 31 15 . Message Errors 44 | . . . . . . 12 6 1 1 5 3 7 2 . 2 2 3 . Matter Fused 50 | . . . . . . 12 8 3 1 4 3 6 1 . 2 8 2 . Heat Flow Errors 26 | . . . . . . 4 4 1 1 2 1 3 2 . 2 5 1 . Energy Discharges 15 | . . . . . . 2 2 . . 3 . 2 . . 2 1 3 . Parts Rejected 3 | . . . . . . . 1 . . 1 . 1 . . . . . . Data Loss (minor) 28 | . . . . . 1 9 5 . . 2 . 1 2 . 1 5 2 . Data Loss (major) 12 | . . . . . . 3 1 2 . 1 . 2 1 . . 2 . . Misfires 7 | . . . . . . . 2 . . . 1 1 . . . 1 2 . Alerts 2 | . . . . . . . . . . . . 2 . . . . . . Misdirections 3 | . . . . . . . . . . . . 3 . . . . . . Targeting Errors 37 | . . . . . . 6 7 3 . 2 4 1 . . 6 7 1 . Weapon Failures 7 | . . . . . . 3 1 . . 1 1 . . . . . 1 . Overload Shots 6 | . . . . . . 1 5 . . . . . . . . . . . Overflow Damage 1033 | . . 9 . 21 3 268 24 7 . 108 181 24 . 5 124 36 223 . Projectiles 313 | . . . . 4 3 9 24 . . 26 3 . . 5 63 36 140 . Explosions 132 | . . . . 17 . 5 . 7 . . 61 24 . . 11 . 7 . Melee 588 | . . 9 . . . 254 . . . 82 117 . . . 50 . 76 . Knockbacks 66 | . . . . 4 3 9 . . . 2 4 2 . . 10 13 19 . Impact 16 | . . . . . . 3 . . . 1 3 . . . 1 . 8 . Kinetic 41 | . . . . 4 3 6 . . . . 1 2 . . 6 8 11 . Secondary 9 | . . . . . . . . . . 1 . . . . 3 5 . . Self-Inflicted Damage 346 | . . . 33 95 . 4 85 . . 7 . . . . 122 . . . Shots 12 | . . . 1 3 . 1 3 . . 1 . . . . 3 . . . Rammed 4 | . 1 1 . . . . . . . . 2 . . . . . . . Targets Rammed 4 | . 1 1 . . . . . . . . 2 . . . . . . . Kicked . | . . . . . . . . . . . . . . . . . . . Crushed . | . . . . . . . . . . . . . . . . . . . Highest Temperature 397 | 27 99 84 36 278 261 355 348 166 88 285 201 177 232 88 345 177 397 86 Average Temperature 92 | 14 42 24 18 81 95 114 168 96 63 60 29 63 112 40 154 42 115 35 Received Heat Transfer 2064 | . 51 219 . 234 84 147 621 36 9 171 90 45 . . 228 66 63 . Effects 9 | . . . . . . 2 . . . . 3 . . . 3 . 1 . Shutdowns 1 | . . . . . . 1 . . . . . . . . . . . . Energy Bleed 3 | . . . . . . 1 . . . . . . . . 1 . 1 . Interference 5 | . . . . . . . . . . . 3 . . . 2 . . . Siege Activations 4 | . . . . . . . . . . 1 . . . . 1 . 2 . Total Turns 131 | . . . . . . . . . . 14 . . . . 107 . 10 . Longest Duration 107 | . . . . . . . . . . 14 . . . . 107 . 8 . Robots Corrupted 1 | . . . . . . 1 . . . . . . . . . . . . Combat Hostiles 1 | . . . . . . 1 . . . . . . . . . . . . Parts Fried 24 | . . 1 . 1 . 9 . 1 . 3 1 . . . 2 . 5 1 Impact Corruptions 27 | . . 1 . . . 10 . . . 4 4 . . . 3 1 4 . Robots Melted 1 | . . . . . . . . . . . . . . . . . 1 . Combat Hostiles 1 | . . . . . . . . . . . . . . . . . 1 . Parts Melted 9 | . . . . . 1 . 2 . . 1 . . . . 4 . 1 . Heat Transferred 5894 | 37 222 185 . 546 798 198 1118 . . 592 100 74 . 185 814 592 433 . Parts Sabotaged . | . . . . . . . . . . . . . . . . . . . Parts Stolen . | . . . . . . . . . . . . . . . . . . . Parts Stripped . | . . . . . . . . . . . . . . . . . . . Power Chain Reactions 4 | . . . . 3 . . . . . . . . . . . . 1 . Missiles Intercepted . | . . . . . . . . . . . . . . . . . . . Alert | -11 -10 -9 -9 -8 -7 -6 -6 -6 -6 -6 -5 -5 -5 -4 -3 -3 -2 -1 ------- Run | Scr Mat Mat Min Mat Fac Fac Ext Cet Arc Hub Fac Upp Upp Fac Res Qua Res Acc Peak Influence 612 | 10 110 413 265 414 409 327 612 599 365 409 371 . . 72 356 262 388 201 Initial 342 | . 6 46 105 103 119 143 61 342 239 127 128 . . 51 . 157 147 196 Average 186 | 3 83 156 235 171 268 163 287 475 340 172 131 . . 52 177 186 184 199 Maximum Alert Level 2 | . . 2 1 2 2 1 2 2 1 2 1 . . . 1 1 1 1 Low Security (%) 58 | 100 100 66 . 65 29 80 30 . . 72 82 . . 100 31 41 49 30 Level 1 36 | . . 32 99 32 52 19 54 11 100 26 17 . . . 68 58 50 69 Level 2 4 | . . . . 1 17 . 14 88 . . . . . . . . . . Level 3 . | . . . . . . . . . . . . . . . . . . . Level 4 . | . . . . . . . . . . . . . . . . . . . Level 5 . | . . . . . . . . . . . . . . . . . . . High Security . | . . . . . . . . . . . . . . . . . . . Max Security . | . . . . . . . . . . . . . . . . . . . Squads Dispatched 39 | . 1 2 . . 7 8 1 . . 3 4 . . . 4 3 6 . Investigation 9 | . 1 1 . . 3 2 . . . . . . . . 2 . . . Extermination 12 | . . . . . 1 3 . . . 2 1 . . . 1 1 3 . Reinforcement 14 | . . 1 . . 3 3 1 . . 1 1 . . . 1 . 3 . Assault . | . . . . . . . . . . . . . . . . . . . Garrison 4 | . . . . . . . . . . . 2 . . . . 2 . . Intercept . | . . . . . . . . . . . . . . . . . . . Construction Impeded 4 | . . . . . . 2 . . . . . . . . . . 2 . Haulers Reinforced 5 | . . . . . 2 1 . . . 1 . . . . 1 . . . Stealth | -11 -10 -9 -9 -8 -7 -6 -6 -6 -6 -6 -5 -5 -5 -4 -3 -3 -2 -1 --------- Run | Scr Mat Mat Min Mat Fac Fac Ext Cet Arc Hub Fac Upp Upp Fac Res Qua Res Acc Distress Signals 10 | . . . . 1 1 2 2 1 . 2 . . . . . . 1 . Communications Jammed . | . . . . . . . . . . . . . . . . . . . Distress Signals . | . . . . . . . . . . . . . . . . . . . Times Spotted 224 | . 4 24 4 26 8 30 27 9 3 15 16 5 . 3 16 10 24 . Peak Tracking Total 7 | . 2 6 3 5 4 5 5 5 2 5 5 4 . 1 7 3 7 . Tactical Retreats 8 | . . . 1 . 2 1 . . . . . . . . 1 . 3 . Traps | -11 -10 -9 -9 -8 -7 -6 -6 -6 -6 -6 -5 -5 -5 -4 -3 -3 -2 -1 ------- Run | Scr Mat Mat Min Mat Fac Fac Ext Cet Arc Hub Fac Upp Upp Fac Res Qua Res Acc Traps Triggered 20 | . 2 1 . . 4 5 4 . . 1 1 . . . 1 1 . . Indirectly . | . . . . . . . . . . . . . . . . . . . Trap Hack Attempts . | . . . . . . . . . . . . . . . . . . . Triggered . | . . . . . . . . . . . . . . . . . . . Disarmed . | . . . . . . . . . . . . . . . . . . . Reprogrammed . | . . . . . . . . . . . . . . . . . . . Reused . | . . . . . . . . . . . . . . . . . . . Traps Extracted . | . . . . . . . . . . . . . . . . . . . Installed . | . . . . . . . . . . . . . . . . . . . Triggered 4 | . . . . . . . . . . . . 1 3 . . . . . Machines | -11 -10 -9 -9 -8 -7 -6 -6 -6 -6 -6 -5 -5 -5 -4 -3 -3 -2 -1 ---------- Run | Scr Mat Mat Min Mat Fac Fac Ext Cet Arc Hub Fac Upp Upp Fac Res Qua Res Acc Machines Disabled 37 | . . 1 . 4 . 2 4 1 2 13 2 . . . 2 6 . . Max in Single Turn 12 | . . 1 . 2 . 1 1 1 1 12 2 . . . 1 1 . . Garrison Access 3 | . . . . . 1 1 . . . . . . . . 1 . . . Network Hub 1 | . . . . . . . . . . 1 . . . . . . . . Energy Cycler 1 | . . . . . . . 1 . . . . . . . . . . . Machines Sabotaged . | . . . . . . . . . . . . . . . . . . . Garrisons Compromised . | . . . . . . . . . . . . . . . . . . . Overloaded Fab Kills . | . . . . . . . . . . . . . . . . . . . Fab Network Shutdowns . | . . . . . . . . . . . . . . . . . . . Hacking | -11 -10 -9 -9 -8 -7 -6 -6 -6 -6 -6 -5 -5 -5 -4 -3 -3 -2 -1 --------- Run | Scr Mat Mat Min Mat Fac Fac Ext Cet Arc Hub Fac Upp Upp Fac Res Qua Res Acc Machines Accessed 56 | . 5 5 . 4 5 13 3 2 1 4 3 1 1 1 1 6 1 . Terminals 45 | . 4 4 . 2 3 10 3 2 . 4 3 1 1 1 . 6 1 . Fabricators 1 | . . . . . 1 . . . . . . . . . . . . . Repair Stations 2 | . . . . 1 . 1 . . . . . . . . . . . . Recycling Units 3 | . 1 1 . . . 1 . . . . . . . . . . . . Scanalyzers 1 | . . . . 1 . . . . . . . . . . . . . . Garrison Access 3 | . . . . . 1 1 . . . . . . . . 1 . . . Total Hacks 161 | . 20 22 . 20 12 33 12 3 6 7 8 1 1 2 1 12 1 . Successful 96 | . 13 10 . 17 6 18 10 1 6 3 2 1 1 1 1 5 1 . Failed 65 | . 7 12 . 3 6 15 2 2 . 4 6 . . 1 . 7 . . Catastrophic 4 | . . 1 . . . 1 . . . . 1 . . . . 1 . . Database Lockouts . | . . . . . . . . . . . . . . . . . . . Manual 67 | . 14 16 . 6 5 14 6 . 1 3 . . . . 1 . 1 . Terminals 129 | . 19 17 . 9 8 29 12 3 . 7 8 1 1 2 . 12 1 . Fabricators 2 | . . . . . 2 . . . . . . . . . . . . . Repair Stations 7 | . . . . 5 . 2 . . . . . . . . . . . . Recycling Units 7 | . 1 5 . . . 1 . . . . . . . . . . . . Scanalyzers 6 | . . . . 6 . . . . . . . . . . . . . . Garrison Access 4 | . . . . . 2 1 . . . . . . . . 1 . . . Terminal Hacks 57 | . 7 4 . 7 2 12 5 1 6 3 2 1 1 1 . 5 . . Record 11 | . . . . . . . . 1 6 . . 1 1 . . 2 . . Part Schematic 1 | . . . . . . 1 . . . . . . . . . . . . Robot Analysis 2 | . 1 . . . . . . . . . 1 . . . . . . . Prototype ID Bank 6 | . 2 . . 1 . 2 . . . . . . . 1 . . . . Open Door 2 | . . . . . . 1 . . . . . . . . . 1 . . Branch Access Points 1 | . . . . . . . . . . . . . . . . 1 . . Terminal Index 6 | . 1 1 . . . 1 1 . . 1 . . . . . 1 . . Alert Level 10 | . . 2 . 2 . 2 3 . . . 1 . . . . . . . Unreport Threat 4 | . . . . 2 . 1 . . . 1 . . . . . . . . Locate Traps 4 | . 1 . . . 1 1 1 . . . . . . . . . . . Hauler Manifests 4 | . 1 1 . 1 . 1 . . . . . . . . . . . . Zone Layout 6 | . 1 . . 1 1 2 . . . 1 . . . . . . . . Fabricator Hacks 2 | . . . . . 2 . . . . . . . . . . . . . Load Schematic 1 | . . . . . 1 . . . . . . . . . . . . . Build 1 | . . . . . 1 . . . . . . . . . . . . . Repair Station Hacks 5 | . . . . 4 . 1 . . . . . . . . . . . . Scan Component 3 | . . . . 2 . 1 . . . . . . . . . . . . Repair 2 | . . . . 2 . . . . . . . . . . . . . . Recycling Unit Hacks 3 | . 1 1 . . . 1 . . . . . . . . . . . . Retrieve Components 3 | . 1 1 . . . 1 . . . . . . . . . . . . Scanalyzer 5 | . . . . 5 . . . . . . . . . . . . . . Insert Component 2 | . . . . 2 . . . . . . . . . . . . . . Analyze 3 | . . . . 3 . . . . . . . . . . . . . . Garrison Access Hacks 1 | . . . . . . 1 . . . . . . . . . . . . Seal Access 1 | . . . . . . 1 . . . . . . . . . . . . Unauthorized Hacks 23 | . 5 5 . 1 2 3 5 . . . . . . . 1 . 1 . Terminals 20 | . 5 4 . 1 1 3 5 . . . . . . . . . 1 . Track 11 | . 3 3 . 1 . 1 2 . . . . . . . . . 1 . Botnet 5 | . 1 . . . 1 1 2 . . . . . . . . . . . Operators 4 | . 1 1 . . . 1 1 . . . . . . . . . . . Fabricators . | . . . . . . . . . . . . . . . . . . . Repair Stations . | . . . . . . . . . . . . . . . . . . . Recycling Units 1 | . . 1 . . . . . . . . . . . . . . . . Recyclers 1 | . . 1 . . . . . . . . . . . . . . . . Scanalyzers . | . . . . . . . . . . . . . . . . . . . Garrison Access 2 | . . . . . 1 . . . . . . . . . 1 . . . Jam 2 | . . . . . 1 . . . . . . . . . 1 . . . Data Cores Recovered . | . . . . . . . . . . . . . . . . . . . Used . | . . . . . . . . . . . . . . . . . . . Hacking Detections 44 | . 4 5 . 3 5 12 3 1 . 4 3 . . 1 . 3 . . Full Trace Events 3 | . . 1 . . 1 1 . . . . . . . . . . . . Feedback Events . | . . . . . . . . . . . . . . . . . . . Feedback Blocked . | . . . . . . . . . . . . . . . . . . . Robot Schematics Acquired . | . . . . . . . . . . . . . . . . . . . Robots Built . | . . . . . . . . . . . . . . . . . . . Matter . | . . . . . . . . . . . . . . . . . . . Time . | . . . . . . . . . . . . . . . . . . . Total Robot Build Rating . | . . . . . . . . . . . . . . . . . . . Part Schematics Acquired 3 | . . . . 2 . 1 . . . . . . . . . . . . Parts Built 1 | . . . . . 1 . . . . . . . . . . . . . Matter 146 | . . . . . 146 . . . . . . . . . . . . . Time 36 | . . . . . 36 . . . . . . . . . . . . . Total Part Build Rating 3 | . . . . . 3 . . . . . . . . . . . . . Parts Repaired 2 | . . . . 2 . . . . . . . . . . . . . . Time 102 | . . . . 102 . . . . . . . . . . . . . . Parts Recycled . | . . . . . . . . . . . . . . . . . . . Recycled Matter . | . . . . . . . . . . . . . . . . . . . Retrieved Matter . | . . . . . . . . . . . . . . . . . . . Retrieved Components 9 | . 4 2 . . . 3 . . . . . . . . . . . . Parts Scanalyzed 2 | . . . . 2 . . . . . . . . . . . . . . Part Schematics Acquired 2 | . . . . 2 . . . . . . . . . . . . . . Parts Damaged . | . . . . . . . . . . . . . . . . . . . Bothacking | -11 -10 -9 -9 -8 -7 -6 -6 -6 -6 -6 -5 -5 -5 -4 -3 -3 -2 -1 ------------ Run | Scr Mat Mat Min Mat Fac Fac Ext Cet Arc Hub Fac Upp Upp Fac Res Qua Res Acc Used RIF Installer . | . . . . . . . . . . . . . . . . . . . Robots Hacked . | . . . . . . . . . . . . . . . . . . . Non-combat . | . . . . . . . . . . . . . . . . . . . Combat . | . . . . . . . . . . . . . . . . . . . Robot Hacks Applied . | . . . . . . . . . . . . . . . . . . . Relay Couplers Released . | . . . . . . . . . . . . . . . . . . . Robots Rewired 20 | . . . . . . . 20 . . . . . . . . . . . Allies Hacked . | . . . . . . . . . . . . . . . . . . . Hacks Repelled . | . . . . . . . . . . . . . . . . . . . Allies | -11 -10 -9 -9 -8 -7 -6 -6 -6 -6 -6 -5 -5 -5 -4 -3 -3 -2 -1 -------- Run | Scr Mat Mat Min Mat Fac Fac Ext Cet Arc Hub Fac Upp Upp Fac Res Qua Res Acc Total Allies 22 | . . . . . . . 22 . . . . . . . . . . . Largest Group 14 | . . . . . . . 14 9 6 4 . . . . . . . . Highest-Rated Group 428 | . . . . . . . 428 299 206 142 . . . . . . . . Highest-Rated Ally 37 | . . . . . . . 37 37 37 37 . . . . . . . . Total Orders . | . . . . . . . . . . . . . . . . . . . Ally Attacks 228 | . . . . . . . 159 39 16 14 . . . . . . . . Total Damage 4029 | . . . . . . . 2922 596 350 161 . . . . . . . . Kills 36 | . . . . . . . 21 8 4 3 . . . . . . . . Allies Corrupted . | . . . . . . . . . . . . . . . . . . . Allies Melted . | . . . . . . . . . . . . . . . . . . . Intel | -11 -10 -9 -9 -8 -7 -6 -6 -6 -6 -6 -5 -5 -5 -4 -3 -3 -2 -1 ------- Run | Scr Mat Mat Min Mat Fac Fac Ext Cet Arc Hub Fac Upp Upp Fac Res Qua Res Acc Robot Analysis Total 2 | . 1 . . . . . . . . . 1 . . . . . . . Derelict Logs Recovered 1 | . . . . . . . . . . . . 1 . . . . . . Drone Launches . | . . . . . . . . . . . . . . . . . . . Drone Recoveries . | . . . . . . . . . . . . . . . . . . . Exploration | -11 -10 -9 -9 -8 -7 -6 -6 -6 -6 -6 -5 -5 -5 -4 -3 -3 -2 -1 ------------- Run | Scr Mat Mat Min Mat Fac Fac Ext Cet Arc Hub Fac Upp Upp Fac Res Qua Res Acc Turns Passed 14139 | 135 375 873 223 1503 1133 2306 1073 279 146 842 1099 650 236 482 933 765 911 175 Spaces Moved 7292 | 68 194 412 129 675 632 1427 476 143 82 394 529 393 148 281 390 405 421 93 Core 4 | 4 . . . . . . . . . . . . . . . . . . Treads 5077 | 64 194 412 129 675 151 35 153 128 82 394 529 393 148 281 390 405 421 93 Legs . | . . . . . . . . . . . . . . . . . . . Wheels 2211 | . . . . . 481 1392 323 15 . . . . . . . . . . Hover . | . . . . . . . . . . . . . . . . . . . Flight . | . . . . . . . . . . . . . . . . . . . Fastest Speed 50 | 50 160 160 160 160 130 120 110 130 160 160 160 160 160 160 160 160 160 160 Average Speed 152 | 153 160 160 160 174 143 131 139 158 160 160 160 160 160 160 160 160 160 160 Slowest Speed 220 | 160 160 160 160 180 200 180 220 180 160 160 160 160 160 160 160 160 160 160 Overloaded Moves . | . . . . . . . . . . . . . . . . . . . Propulsion Burnouts . | . . . . . . . . . . . . . . . . . . . Robots Hopped . | . . . . . . . . . . . . . . . . . . . Cave-ins Triggered . | . . . . . . . . . . . . . . . . . . . Teleports 1 | . . . . . . . . . . . . . . . . . 1 . Exploration Rate (%) 37 | 5 44 40 32 51 21 37 79 68 85 43 17 78 28 5 12 46 14 3 Regions Visited 18 Branch Regions 8 Pre-discovered Areas 1 | . . . . . . . . . . . . 1 . . . . . . Known Exits Taken 13 | . . . . . 1 1 1 1 1 1 1 1 1 1 1 1 1 . Unknown Exits Taken 5 | 1 1 1 1 1 . . . . . . . . . . . . . . Scrap Searched 6 | . . . . . . . . . . . . 5 1 . . . . . Spaces Dug 124 | . . 2 . 4 2 22 . . . 11 21 27 . . 16 7 12 . Terrain Destroyed 518 | . . 2 10 69 3 22 21 . 4 164 82 48 . . 54 10 29 . Melee 54 | . . 2 . . . 5 . . . 7 11 . . . 13 4 12 . Projectile 109 | . . . . . 3 17 3 . 4 20 28 1 . . 10 6 17 . AOE 355 | . . . 10 69 . . 18 . . 137 43 47 . . 31 . . . Terrain Rammed . | . . . . . . . . . . . . . . . . . . . Walls Destroyed . | . . . . . . . . . . . . . . . . . . . Machines Disabled . | . . . . . . . . . . . . . . . . . . . Actions | -11 -10 -9 -9 -8 -7 -6 -6 -6 -6 -6 -5 -5 -5 -4 -3 -3 -2 -1 --------- Run | Scr Mat Mat Min Mat Fac Fac Ext Cet Arc Hub Fac Upp Upp Fac Res Qua Res Acc Total 9298 | 88 242 531 135 900 800 1702 825 183 87 511 667 404 147 303 598 486 578 111 Wait 696 | . 40 22 . 117 91 90 29 4 1 45 49 . . 1 103 33 71 . Move 7274 | 67 193 411 128 674 631 1426 475 142 81 393 528 392 147 280 389 404 420 93 Hop . | . . . . . . . . . . . . . . . . . . . Pick Up 73 | 6 . 7 . 12 10 8 3 6 . 1 5 1 . 3 5 5 1 . Fast Attach 111 | 8 . 9 . 16 9 10 12 5 . 9 6 2 . 3 8 3 7 4 Attach 27 | . . 2 . 2 1 3 5 . . . 5 . . 1 3 1 3 1 Detach 23 | . . 2 . 3 . 2 4 1 . . . . . 1 5 1 3 1 Swap 74 | . . 7 1 10 12 19 3 2 . 7 6 1 . 1 2 1 1 1 Drop 118 | 3 . 15 . 14 18 15 4 11 . 6 3 1 . 4 7 7 7 3 Fire 523 | 4 8 48 6 51 28 105 39 5 5 39 45 7 . 8 58 25 34 8 Melee 115 | . . 7 . . . 16 . 7 . 11 18 . . 1 18 6 31 . Ram . | . . . . . . . . . . . . . . . . . . . Kick . | . . . . . . . . . . . . . . . . . . . Crush 4 | . 1 1 . . . . . . . . 2 . . . . . . . Escape Stasis 40 | . . . . . . 8 32 . . . . . . . . . . . Rewire 220 | . . . . 1 . . 219 . . . . . . . . . . . Trap . | . . . . . . . . . . . . . . . . . . . Miscellaneous . | . . . . . . . . . . . . . . . . . . . Route ------- -11/Scrapyard -10/Materials (discovered 2 exits: *Mat / [*Min]) -9/Materials (discovered 2 exits: [*Min] / [*Sto]) -9/Mines -8/Materials (discovered 2 exits: *Fac x2) -7/Factory (discovered 3 exits: *Fac x2 / [*Low]) -6/Factory (discovered 4 exits: *Fac x2 / [Low] / *Ext) -6/Extension (discovered 3 exits: *Fac x2 / *Cet) -6/Cetus -6/Archives (discovered 3 exits: *Fac / *Hub x2) -6/Hub_04(d) -5/Factory -5/Upper Caves -5/Upper Caves -4/Factory -3/Research -3/Quarantine -2/Research -1/Access History --------- Turn | Location | Event 34 | -11/Scrapyard | Discovered new exit (range 16) 136 | -11/Scrapyard | Entered Materials 240 | -10/Materials | Discovered new exit (range 9) 308 | -10/Materials | Build established: Mutant 413 | -10/Materials | Discovered new exit (range 15) 511 | -10/Materials | Entered another Materials area 511 | -9/Materials | Evolved 2 slots: Utility x2 1092 | -9/Materials | Build established: Scavenger-Mutant 1121 | -9/Materials | Discovered new exit (range 16) 1243 | -9/Materials | Discovered new exit (range 14) 1384 | -9/Materials | Entered Mines 1525 | -9/Mines | Discovered new exit (range 5) 1607 | -9/Mines | Entered Materials 1607 | -8/Materials | Evolved 2 slots: Utility x1, Weapon x1 1800 | -8/Materials | Discovered new exit (range 15) 2057 | -8/Materials | Build established: Scavenger-Skirmisher 2118 | -8/Materials | Repaired Imp. EM Shotgun 2171 | -8/Materials | Repaired Hvy. Ion Engine 3084 | -8/Materials | Discovered new exit (range 14) 3098 | -8/Materials | Build established: Skirmisher 3110 | -8/Materials | Entered Factory 3110 | -7/Factory | Evolved 2 slots: Propulsion x1, Utility x1 3229 | -7/Factory | Discovered new exit (range 12) 3301 | -7/Factory | Discovered new exit (range 8) 3333 | -7/Factory | Identified exit to Factory 3524 | -7/Factory | Fabricated Shock Bomb Launcher (x1) 4208 | -7/Factory | Discovered exit to Factory (range 15) 4243 | -7/Factory | Entered another Factory area 4243 | -6/Factory | Evolved 2 slots: Propulsion x1, Utility x1 4391 | -6/Factory | Build established: Mutant 4755 | -6/Factory | Discovered new exit (range 16) 5038 | -6/Factory | Build established: Assassin 5591 | -6/Factory | Discovered new exit (range 16) 5814 | -6/Factory | Discovered new exit (range 16) 5915 | -6/Factory | Discovered new exit (range 7) 5921 | -6/Factory | Identified exit to Factory 6175 | -6/Factory | Build established: Mutant 6548 | -6/Factory | Identified exit to Extension 6549 | -6/Factory | Entered Extension 6740 | -6/Extension | Energy Cycler disabled 6740 | -6/Extension | Rescued a captive Derelict 6741 | -6/Extension | Rescued a captive Derelict 6743 | -6/Extension | Rescued a captive Derelict 6745 | -6/Extension | Rescued a captive Derelict 6746 | -6/Extension | Rescued a captive Derelict 7029 | -6/Extension | Extracted ID and sensor layout for unrecognized location from A7's data core 7029 | -6/Extension | Spotted B-75 Beast 7041 | -6/Extension | Discovered exit to Factory (range 18) 7062 | -6/Extension | Destroyed B-75 Beast 7086 | -6/Extension | Lost 8 parts (2n3u3w) 7594 | -6/Extension | Discovered exit to Factory (range 10) 7595 | -6/Extension | Discovered new exit (range 6) 7621 | -6/Extension | Identified exit to Cetus 7622 | -6/Extension | Entered Cetus 7622 | -6/Cetus | Accompanied by 9 allies 7637 | -6/Cetus | Spotted Cetus Guard 7638 | -6/Cetus | Spotted Cetus Guard 7643 | -6/Cetus | Spotted Cetus Guard 7643 | -6/Cetus | Spotted Cetus Guard 7646 | -6/Cetus | Allies destroyed Cetus Guard 7650 | -6/Cetus | Allies destroyed Cetus Guard 7655 | -6/Cetus | Allies destroyed Cetus Guard 7655 | -6/Cetus | Allies destroyed Cetus Guard 7685 | -6/Cetus | Lost 3 parts (1n2w) 7838 | -6/Cetus | Found a strange terminal 7865 | -6/Cetus | Discovered new exit (range 22) 7897 | -6/Cetus | Identified exit to Archives 7901 | -6/Cetus | Entered Archives 7901 | -6/Archives | Accompanied by 6 allies 7945 | -6/Archives | Unable to access archive contents 7953 | -6/Archives | Discovered new exit (range 21) 7960 | -6/Archives | Discovered new exit (range 21) 7971 | -6/Archives | Unable to access archive contents 7979 | -6/Archives | Discovered exit to Factory (range 21) 8012 | -6/Archives | Unable to access archive contents 8044 | -6/Archives | Identified exit to Hub_04(d) 8047 | -6/Archives | Entered Hub_04(d) 8047 | -6/Hub_04(d) | Accompanied by 4 allies 8355 | -6/Hub_04(d) | Build established: Scavenger-Assassin 8636 | -6/Hub_04(d) | Discovered exit to Factory (range 8) 8839 | -6/Hub_04(d) | Network Hub disabled 8849 | -6/Hub_04(d) | Spotted Lightning 8851 | -6/Hub_04(d) | Spotted Lightning 8853 | -6/Hub_04(d) | Spotted Lightning 8885 | -6/Hub_04(d) | System corruption reached 10% 8889 | -6/Hub_04(d) | Entered Factory 8889 | -5/Factory | Evolved 2 slots: Utility x1, Weapon x1 9803 | -5/Factory | Garrison activated, responded to threat 9848 | -5/Factory | System corruption reached 10% 9889 | -5/Factory | Destroyed 8 combat bots 9889 | -5/Factory | Lost 5 parts (3u2w) 9977 | -5/Factory | Discovered new exit (range 8) 9986 | -5/Factory | Identified exit to Upper Caves 9988 | -5/Factory | Entered Upper Caves 10266 | -5/Upper Caves | Learned location of Armory (-3) 10425 | -5/Upper Caves | Ambushed by wild Derelicts 10569 | -5/Upper Caves | Discovered new exit (range 21) 10617 | -5/Upper Caves | Identified exit to Upper Caves 10638 | -5/Upper Caves | Entered another Upper Caves area 10850 | -5/Upper Caves | Discovered new exit (range 6) 10856 | -5/Upper Caves | Identified exit to Factory 10874 | -5/Upper Caves | Entered Factory 10874 | -4/Factory | Evolved 2 slots: Propulsion x1, Utility x1 10993 | -4/Factory | Discovered new exit (range 11) 11117 | -4/Factory | Identified exit to Research 11356 | -4/Factory | Entered Research 11356 | -3/Research | Evolved 2 slots: Propulsion x1, Weapon x1 11901 | -3/Research | Lost 4 parts (4u) 12030 | -3/Research | Found Prototype Processor 12030 | -3/Research | Identified Exp. Signal Interpreter 12204 | -3/Research | Found Prototype Device 12204 | -3/Research | Identified Exp. Thermal Shield 12252 | -3/Research | Discovered new exit (range 5) 12286 | -3/Research | Identified exit to Quarantine 12289 | -3/Research | Entered Quarantine 12577 | -3/Quarantine | Found Alien Artifact 12577 | -3/Quarantine | Identified Phase Armor 12738 | -3/Quarantine | Found Alien Artifact 12744 | -3/Quarantine | Found Alien Artifact 12924 | -3/Quarantine | Garrison activated, responded to threat 12941 | -3/Quarantine | Discovered new exit (range 5) 12969 | -3/Quarantine | Identified exit to Research 12981 | -3/Quarantine | Spotted Alpha 7 13002 | -3/Quarantine | Found Alien Launcher 13054 | -3/Quarantine | Entered Research 13054 | -2/Research | Evolved 2 slots: Utility x2 13437 | -2/Research | Identified Hpw. Transdimensional Reconstructor 13437 | -2/Research | Warped through subspace 13459 | -2/Research | Found Prototype Device 13500 | -2/Research | Spotted B-90 Cyclops 13864 | -2/Research | Found Prototype Device 13864 | -2/Research | Identified Exp. Actuator Array 13878 | -2/Research | Discovered new exit (range 14) 13911 | -2/Research | Identified exit to Access 13965 | -2/Research | Entered Access 13965 | -1/Access | Evolved 2 slots: Power x1, Utility x1 14140 | -1/Access | Self-destructed Last Messages --------------- PARAMETERS=POWER_1,UTILITY_1 LOCATION=ACCESS GOAL=ESCAPE 13981_ Acquired Prototype Energy Gun. 13981_ Identified Enh. Force Rifle. 13986_ Dropped Enh. Force Rifle. 13987_ Acquired Prototype Energy Gun. 13987_ Identified Hvy. Tesla Rifle. 13991_ Acquired Unknown Device. 13991_ Identified Lrn. Tractor Beam. 13996_ Dropped Enh. Gauss Cannon. 14005_ Destroyed Com. Wheel. 14011_ Destroyed Hpw. Tractor Beam. 14019_ Imp. Ion Engine fried. 14019_ R-10 Processor destroyed. 14030_ Acquired 134 matter. 14051_ R-10 Processor collects Enh. Gauss Cannon. 14131_ Dropped Powered Hammer. 14133_ Acquired Prototype Special Weapon. 14133_ Identified Exp. Stasis Projector. Map ----- +----------------------------------------------------+ | | | | | | | | | | | | | | | | | | | | | | | | | | | | | ???????????????????????????????????############### | | ???????????????????????????????????# # | | ???????????????????????????????????# = # | | ????????????????????????#??????????# # | | ???????????????????????# ????????? # | | ????????????????????????? #######?? ??# | | ???????????????????????????? +???? ????# | | ???????????????????????????????# #######+####### | | ???????????????????????????????# + | | ???????????????????????######### ^ # | | ???????????????????????# ! # !! # | | ???????????????????????# @/ # ! + | | ???????????????????????# ! + ####### | | ???????????????????????# [ # #?????# | | ???????????????????????# # #?????# | | ???????????????????????######### ##+####### | | ???????????????????????????????#+## # | | ??????????????????????????????????# # | | ??????????????????????????????????# # | | ??????????????????????????????????# # | | ??????????????????????????????????+ # | | ??????????????????????????????????# # | | ??????????????????????????????????# ########## | | ??????????????????????????????????# ????????? | | ??????????????????????????????????# ???????? | | ??????????????????????????????????# ??????? | | ??????????????????????????????????# ??????? | | ??????????????????????????????????# ?????? | | ??????????????????????????????????###+## ????? | | ???????????????????????????????????????? ????? | | ???????????????????????????????????????? ????? | | ???????????????????????????????????????? ????? | | ???????????????????????????????????????? ?????? | | ???????????????????????????????????????? ???????? | | ?????????????????????????????????????????????????? | | ?????????????????????????????????????????????????? | +----------------------------------------------------+ Best States ------------- Heat Dissipation 71 Energy Generation 39 Energy Capacity 300 Matter Stores 300 Matter Capacity 300 Sight Range 22 Robot Scan Range 20 Terrain Scan Range 16 Terrain Scan Density 210 Base Temperature (-) 200 Corruption Prevention 12 Armor Coverage 1800 Resistance: KI 20 Resistance: TH 30 Weapon Cycling 20 Evasion (%) 40 Targeting Accuracy 8 Recoil Reduction 6 Item Schematics ----------------- Shock Bomb Launcher | -8/Materials | Scanalyzed Imp. Sensor Array | -8/Materials | Scanalyzed Linear Gravjet | -6/Factory | Hacked Robot Schematics ------------------ None Fabricated ------------ Shock Bomb Launcher | x1 | -7/Factory Alien Tech Used ----------------- Phase Armor High-powered Transdimensional Reconstructor Achievements -------------- None Challenges ------------ None Game ------ Seed MetafiberLayeredSource Manual? 0 Play Time 02:27:48 Cumulative 308.3 hours Start 2021.10.22 @ 12:04:21 End 2021.12.07 @ 22:26:53 Sessions 15 Manual Loads 0 Difficulty Rogue Special Mode None Game No. 396 Rogue 392 Adventurer 0 Explorer 4 Win Type - Total 5 Types 4/0/0/1/0/0/0/0/0 Lore% 82 Gallery% 90 Achievement% 63 Wizard Run 0 Options --------- ASCII 1 Keyboard 1 Movement Numpad Keybinds 0 Fullscreen 2 Font 18/Terminus Map View 76x50 Tactical HUD 1 Map Filters NONE Filters NONE Steam 1 RUN: 7e7a59d7-7479-4d83-ba8c-17152dd47c74